Workbook

Sheet Summary
C3: Metabolites in biomass | D3: Metabolites in the biomass reaction and the number of associated mreactions
C4: RMFs | D4: Definition of the Required Metabolic Functionalities necessary in GIMME algorithm
C5: Metabolites_experimentally_measured_in_HMR2 | D5: Metabolites experimentally measured and annotated in HMR2 and their presence in the different subcellular compartments
C6: S-GPR_&_GPR | D6: Gene-to-reaction associations (GPRs) and stoichiometric gene-to-reaction associations (S-GPRs) automatically build

Sheet Metabolites in biomass
A1: HRM2 ID | B1: Metabolite name | C1: Number of associated reactions
A2: M_m01589c | B2: CL pool | C2: 1
A3: M_m01722n | B3: DNA-5-methylcytosine | C3: 1
A4: M_m02392c | B4: lipid droplet | C4: 1
A5: M_temp001x | B5: biomass | C5: 1
A6: M_m01721n | B6: DNA | C6: 2
A7: M_m01602c | B7: cofactors and vitamins | C7: 2
A8: M_m02733c | B8: Phosphatidate-LD-TAG pool | C8: 3
A9: M_m03161c | B9: glycogen | C9: 3
A10: M_m02847c | B10: RNA | C10: 4
A11: M_m01389c | B11: beta-D-glucose-6-phosphate | C11: 5
A12: M_m01451r | B12: Cholesterol-ester pool | C12: 5
A13: M_m02908c | B13: SM pool | C13: 7
A14: M_m02750c | B14: PI pool | C14: 12
A15: M_m01450c | B15: cholesterol | C15: 16
A16: M_m01370c | B16: aspartat | C16: 19
A17: M_m01623c | B17: CTP | C17: 21
A18: M_m02034c | B18: GTP | C18: 23
A19: M_m01365c | B19: arginine | C19: 45
A20: M_m03135c | B20: valine | C20: 47
A21: M_m02993c | B21: threonine | C21: 48
A22: M_m02426c | B22: lysine | C22: 48
A23: M_m03089c | B23: tryptophan | C23: 50
A24: M_m02770c | B24: proline | C24: 52
A25: M_m02125c | B25: histidine | C25: 53
A26: M_m02724c | B26: phenylalanine | C26: 53
A27: M_m02184c | B27: isoleucine | C27: 54
A28: M_m01369c | B28: aspargine | C28: 55
A29: M_m02360c | B29: leucine | C29: 57
A30: M_m02896c | B30: serine | C30: 58
A31: M_m03101c | B31: tyrosine | C31: 58
A32: M_m02471c | B32: methionine | C32: 59
A33: M_m01974c | B33: glutamate | C33: 62
A34: M_m01628c | B34: cysteine | C34: 63
A35: M_m01307c | B35: alanine | C35: 66
A36: M_m01975c | B36: glutamine | C36: 67
A37: M_m01986c | B37: glycine | C37: 71
A38: M_m02751c | B38: Pi | C38: 274
A39: M_m01285c | B39: ADP | C39: 302
A40: M_m01371c | B40: ATP | C40: 432
A41: M_m02039c | B41: H+ | C41: 547
A42: M_m02040c | B42: H2O | C42: 834

Sheet RMFs
B1: RMF | C1: MODEL | D1: RATIO
A2: Aminoacyl-tRNA biosynthesis | B2: 19 | C2: 20 | D2: =B2/C2 -> 0.95 | F2: Required Metabolic Functionalities(RMF)
A3: Protein degradation | B3: 12 | C3: 13 | D3: =B3/C3 -> 0.9230769231
A4: Protein modification | B4: 4 | C4: 6 | D4: =B4/C4 -> 0.6666666667 | F4: RMFs is a required parameter to apply GIMME algorithm
A5: Glutathione metabolism | B5: 6 | C5: 12 | D5: =B5/C5 -> 0.5
A6: O-glycan metabolism | B6: 1 | C6: 2 | D6: =B6/C6 -> 0.5
A7: Cysteine and methionine metabolism | B7: 12 | C7: 27 | D7: =B7/C7 -> 0.4444444444
A8: Alanine, aspartate and glutamate metabolism | B8: 12 | C8: 30 | D8: =B8/C8 -> 0.4
A9: Artificial reactions | B9: 2 | C9: 5 | D9: =B9/C9 -> 0.4
A10: Glycine, serine and threonine metabolism | B10: 16 | C10: 43 | D10: =B10/C10 -> 0.3720930233
A11: Transport, extracellular | B11: 323 | C11: 935 | D11: =B11/C11 -> 0.3454545455
A12: Cholesterol biosynthesis 2 | B12: 1 | C12: 3 | D12: =B12/C12 -> 0.3333333333
A13: Transport, lysosome to ER | B13: 1 | C13: 3 | D13: =B13/C13 -> 0.3333333333
A14: Eicosanoid metabolism | B14: 3 | C14: 10 | D14: =B14/C14 -> 0.3
A15: Biotin metabolism | B15: 1 | C15: 4 | D15: =B15/C15 -> 0.25
A16: Transport, lysosomal | B16: 18 | C16: 80 | D16: =B16/C16 -> 0.225
A17: Phenylalanine, tyrosine and tryptophan biosynthesis | B17: 21 | C17: 97 | D17: =B17/C17 -> 0.2164948454
A18: Histidine metabolism | B18: 3 | C18: 14 | D18: =B18/C18 -> 0.2142857143
A19: Folate metabolism | B19: 9 | C19: 45 | D19: =B19/C19 -> 0.2
A20: Terpenoid backbone biosynthesis | B20: 1 | C20: 5 | D20: =B20/C20 -> 0.2
A21: Tryptophan metabolism | B21: 1 | C21: 5 | D21: =B21/C21 -> 0.2
A22: Glycerophospholipid metabolism | B22: 8 | C22: 51 | D22: =B22/C22 -> 0.1568627451
A23: Transport, mitochondrial | B23: 40 | C23: 269 | D23: =B23/C23 -> 0.1486988848
A24: Isolated | B24: 11 | C24: 74 | D24: =B24/C24 -> 0.1486486486
A25: Other amino acid | B25: 2 | C25: 14 | D25: =B25/C25 -> 0.1428571429
A26: Glycosylphosphatidylinositol (GPI)-anchor biosynthesis | B26: 1 | C26: 7 | D26: =B26/C26 -> 0.1428571429
A27: Lipoic acid metabolism | B27: 1 | C27: 7 | D27: =B27/C27 -> 0.1428571429
A28: Tyrosine metabolism | B28: 3 | C28: 22 | D28: =B28/C28 -> 0.1363636364
A29: Arginine and proline metabolism | B29: 10 | C29: 75 | D29: =B29/C29 -> 0.1333333333
A30: Biopterin metabolism | B30: 2 | C30: 15 | D30: =B30/C30 -> 0.1333333333
A31: Fructose and mannose metabolism | B31: 2 | C31: 15 | D31: =B31/C31 -> 0.1333333333
A32: Glycolysis / Gluconeogenesis | B32: 4 | C32: 31 | D32: =B32/C32 -> 0.1290322581
A33: Purine metabolism | B33: 11 | C33: 86 | D33: =B33/C33 -> 0.1279069767
A34: Inositol phosphate metabolism | B34: 6 | C34: 47 | D34: =B34/C34 -> 0.1276595745
A35: Bile acid biosynthesis | B35: 7 | C35: 55 | D35: =B35/C35 -> 0.1272727273
A36: Sulfur metabolism | B36: 1 | C36: 8 | D36: =B36/C36 -> 0.125
A37: Amino sugar and nucleotide sugar metabolism | B37: 3 | C37: 25 | D37: =B37/C37 -> 0.12
A38: beta-Alanine metabolism | B38: 1 | C38: 9 | D38: =B38/C38 -> 0.1111111111
A39: Serotonin and melatonin biosynthesis | B39: 1 | C39: 9 | D39: =B39/C39 -> 0.1111111111
A40: Valine, leucine, and isoleucine metabolism | B40: 3 | C40: 29 | D40: =B40/C40 -> 0.1034482759
A41: Nucleotide metabolism | B41: 10 | C41: 102 | D41: =B41/C41 -> 0.09803921569
A42: Lysine metabolism | B42: 2 | C42: 21 | D42: =B42/C42 -> 0.09523809524
A43: Ascorbate and aldarate metabolism | B43: 1 | C43: 11 | D43: =B43/C43 -> 0.09090909091
A44: Steroid metabolism | B44: 3 | C44: 34 | D44: =B44/C44 -> 0.08823529412
A45: Pyrimidine metabolism | B45: 5 | C45: 58 | D45: =B45/C45 -> 0.08620689655
A46: Transport, nuclear | B46: 5 | C46: 58 | D46: =B46/C46 -> 0.08620689655
A47: Sphingolipid metabolism | B47: 3 | C47: 37 | D47: =B47/C47 -> 0.08108108108
A48: Galactose metabolism | B48: 1 | C48: 13 | D48: =B48/C48 -> 0.07692307692
A49: N-glycan metabolism | B49: 1 | C49: 14 | D49: =B49/C49 -> 0.07142857143
A50: Pyruvate metabolism | B50: 2 | C50: 29 | D50: =B50/C50 -> 0.06896551724
A51: Starch and sucrose metabolism | B51: 1 | C51: 15 | D51: =B51/C51 -> 0.06666666667
A52: False Transport reactions | B52: 17 | C52: 281 | D52: =B52/C52 -> 0.06049822064
A53: Pantothenate and CoA biosynthesis | B53: 1 | C53: 17 | D53: =B53/C53 -> 0.05882352941
A54: Transport, Golgi apparatus | B54: 4 | C54: 83 | D54: =B54/C54 -> 0.04819277108
A55: Transport, peroxisomal | B55: 4 | C55: 91 | D55: =B55/C55 -> 0.04395604396
A56: Protein assembly | B56: 1 | C56: 24 | D56: =B56/C56 -> 0.04166666667
A57: Glycerolipid metabolism | B57: 2 | C57: 49 | D57: =B57/C57 -> 0.04081632653
A58: Transport, endoplasmic reticular | B58: 5 | C58: 126 | D58: =B58/C58 -> 0.03968253968
A59: Nicotinate and nicotinamide metabolism | B59: 1 | C59: 28 | D59: =B59/C59 -> 0.03571428571
A60: Omega-3 fatty acid metabolism | B60: 1 | C60: 32 | D60: =B60/C60 -> 0.03125
A61: Formation and hydrolysis of cholesterol esters | B61: 1 | C61: 37 | D61: =B61/C61 -> 0.02702702703
A62: Leukotriene metabolism | B62: 1 | C62: 81 | D62: =B62/C62 -> 0.01234567901
B64: =SUM(B2:B63) -> 655 | C64: =SUM(C2:C63) -> 3448

Sheet Metabolites_experimentally_measured_in_HMR2
C1: Compartments
A2: Recon2_ID | B2: HMR2_ID | C2: c | D2: s | E2: m | F2: g | G2: l | H2: p | I2: n | J2: r | K2: xx
A3: M_25hvitd3_e | B3: M_m01415 | C3: X | D3: X | E3: X | F3: - | G3: - | H3: - | I3: - | J3: - | K3: X
A4: M_3ddcrn_e | B4: M_m01729 | C4: X | D4: - | E4: X | F4: - | G4: - | H4: - | I4: - | J4: X | K4: -
A5: M_3tdcrn_e | B5: M_m02973 | C5: X | D5: - | E5: X | F5: - | G5: - | H5: - | I5: - | J5: X | K5: -
A6: M_5adtststeroneglc_e | B6: M_m01070 | C6: X | D6: X | E6: - | F6: - | G6: - | H6: - | I6: - | J6: - | K6: X
A7: M_aflatoxin_e | B7: M_m01296 | C7: X | D7: X | E7: - | F7: - | G7: - | H7: - | I7: - | J7: - | K7: X
A8: M_arachcoa_e | B8: M_m01773 | C8: X | D8: - | E8: X | F8: - | G8: - | H8: X | I8: - | J8: X | K8: -
A9: M_avite1_e | B9: M_m01327 | C9: X | D9: X | E9: - | F9: - | G9: - | H9: - | I9: - | J9: X | K9: X
A10: M_bilglcur_e | B10: M_m01398 | C10: X | D10: X | E10: - | F10: - | G10: - | H10: - | I10: - | J10: X | K10: X
A11: M_C05965_e | B11: M_m00306 | C11: X | D11: - | E11: - | F11: - | G11: - | H11: - | I11: - | J11: - | K11: -
A12: M_cdpea_e | B12: M_m01428 | C12: X | D12: - | E12: - | F12: X | G12: - | H12: - | I12: - | J12: - | K12: -
A13: M_crm_hs_e | B13: M_m01430 | C13: X | D13: - | E13: - | F13: X | G13: X | H13: - | I13: - | J13: X | K13: -
A14: M_crtstrn_e | B14: M_m01614 | C14: X | D14: X | E14: X | F14: - | G14: - | H14: - | I14: - | J14: X | K14: X
A15: M_ebastine_e | B15: M_m01765 | C15: X | D15: X | E15: - | F15: - | G15: - | H15: - | I15: - | J15: X | K15: X
A16: M_galside_hs_e | B16: M_m01679 | C16: X | D16: - | E16: - | F16: X | G16: X | H16: - | I16: - | J16: X
A17: M_gthox_e | B17: M_m02027 | C17: X | D17: X | E17: X | F17: - | G17: - | H17: - | I17: - | J17: X | K17: X
A18: M_C04685_e | B18: M_m02776 | C18: X | D18: X | E18: - | F18: - | G18: - | H18: - | I18: - | J18: - | K18: -
A19: M_HC02204_e | B19: M_m02778 | C19: X | D19: X | E19: - | F19: - | G19: - | H19: - | I19: - | J19: - | K19: -
A20: M_HC02217_e | B20: M_m02792 | C20: X | D20: X | E20: - | F20: - | G20: - | H20: - | I20: - | J20: X | K20: -
A21: M_glyleu_e | B21: M_m03171 | C21: - | D21: - | E21: - | F21: - | G21: - | H21: - | I21: - | J21: - | K21: -
A22: M_leuktrB4_e | B22: M_m02364 | C22: X | D22: X | E22: X | F22: - | G22: - | H22: X | I22: - | J22: X | K22: X
A23: M_leuktrD4_e | B23: M_m02418 | C23: X | D23: - | E23: - | F23: - | G23: - | H23: - | I23: - | J23: - | K23: -
A24: M_elaid_e | B24: M_m01778 | C24: X | D24: X | E24: - | F24: - | G24: X | H24: - | I24: - | J24: X
A25: M_pe_hs_e | B25: M_m02697 | C25: X | D25: - | E25: - | F25: - | G25: - | H25: - | I25: - | J25: - | K25: -
A26: M_prostgd2_e | B26: M_m02783 | C26: X | D26: X | E26: - | F26: - | G26: - | H26: - | I26: - | J26: X | K26: X
A27: M_prostge2_e | B27: M_m02786 | C27: X | D27: X | E27: - | F27: - | G27: - | H27: - | I27: - | J27: X | K27: X
A28: M_HC02213_e | B28: M_m02787 | C28: X | D28: X | E28: - | F28: - | G28: - | H28: - | I28: X | J28: - | K28: -
A29: M_prostgh2_e | B29: M_m02794 | C29: X | D29: X | E29: - | F29: - | G29: - | H29: - | I29: X | J29: X | K29: -
A30: M_prostgi2_e | B30: M_m02795 | C30: X | D30: X | E30: - | F30: - | G30: - | H30: - | I30: - | J30: X | K30: -
A31: M_q10_e | B31: M_m03103 | C31: - | D31: - | E31: X | F31: - | G31: - | H31: - | I31: - | J31: - | K31: -
A32: M_q10h2_e | B32: M_m03102 | C32: - | D32: - | E32: X | F32: - | G32: - | H32: - | I32: - | J32: - | K32: -
A33: M_retinol_9_cis_e | B33: M_m01232 | C33: X | D33: - | E33: - | F33: - | G33: - | H33: - | I33: - | J33: - | K33: -
A34: M_retinol_11_cis_e | B34: M_m00291 | C34: X | D34: - | E34: - | F34: - | G34: - | H34: - | I34: - | J34: - | K34: -
A35: M_ribflv_e | B35: M_m02842 | C35: X | D35: X | E35: - | F35: - | G35: - | H35: - | I35: - | J35: - | K35: X
A36: M_sph1p_e | B36: M_m02928 | C36: X | D36: X | E36: - | F36: - | G36: - | H36: - | I36: - | J36: X | K36: X
A37: M_tdcrn_e | B37: M_m02973 | C37: X | D37: - | E37: X | F37: - | G37: - | H37: - | I37: - | J37: X | K37: -
A38: M_tetdec2crn_e | B38: M_m03173 | C38: X | D38: - | E38: - | F38: - | G38: - | H38: - | I38: - | J38: - | K38: -
A39: M_txa2_e | B39: M_m02994 | C39: X | D39: X | E39: - | F39: - | G39: - | H39: - | I39: - | J39: X | K39: X
A40: M_xolest_hs_e | B40: M_m01451 | C40: X | D40: X | E40: - | F40: - | G40: X | H40: - | I40: - | J40: X | K40: -
A41: M_xoltri24_e | B41: M_m01446 | C41: X | D41: - | E41: - | F41: - | G41: - | H41: - | I41: - | J41: - | K41: -
A42: M_xoltri25_e | B42: M_m01447 | C42: - | D42: - | E42: - | F42: - | G42: - | H42: - | I42: - | J42: X | K42: -
A43: M_xoltri27_e | B43: M_m01448 | C43: X | D43: - | E43: X | F43: - | G43: - | H43: - | I43: - | J43: - | K43: -
A44: M_leuktrA4_e | B44: M_m02362 | C44: X | D44: X | E44: - | F44: - | G44: - | H44: - | I44: X | J44: X | K44: X
A45: M_leuktrC4_e | B45: M_m02366 | C45: X | D45: X | E45: - | F45: - | G45: - | H45: - | I45: - | J45: X | K45: X
A46: M_tetdece1crn_e | B46: M_m02974 | C46: X | D46: - | E46: X | F46: - | G46: - | H46: - | I46: - | J46: X | K46: -
A47: M_tethex3_e | B47: M_m03174 | C47: - | D47: - | E47: - | F47: - | G47: - | H47: - | I47: - | J47: - | K47: -
A48: M_gchola_e | B48: M_m01988 | C48: X | D48: X | E48: - | F48: - | G48: - | H48: - | I48: - | J48: - | K48: X
A49: M_spc_hs_e | B49: M_m02931 | C49: X | D49: X | E49: - | F49: - | G49: - | H49: - | I49: - | J49: - | K49: X
A50: M_ak2lgchol_hs_e | B50: M_m00516 | C50: X | D50: X | E50: - | F50: - | G50: - | H50: - | I50: - | J50: - | K50: X
A51: M_aldstrn_e | B51: M_m01309 | C51: X | D51: X | E51: X | F51: - | G51: - | H51: - | I51: - | J51: - | K51: X
A52: M_ptth_e | B52: M_m02679 | C52: X | D52: - | E52: X | F52: - | G52: - | H52: - | I52: - | J52: - | K52: -
A53: M_35cgmp_e | B53: M_m01433 | C53: X | D53: X | E53: - | F53: X | G53: - | H53: - | I53: X | J53: - | K53: X
A54: M_tchola_e | B54: M_m02963 | C54: X | D54: X | E54: - | F54: - | G54: - | H54: X | I54: - | J54: - | K54: X
A55: M_3octdece1crn_e | B55: M_m02410 | C55: X | D55: - | E55: X | F55: - | G55: - | H55: - | I55: - | J55: X | K55: -
A56: M_cholate_e | B56: M_m01445 | C56: X | D56: X | E56: X | F56: - | G56: - | H56: X | I56: - | J56: X | K56: -
A57: M_fad_e | B57: M_m01802 | C57: X | D57: X | E57: X | F57: - | G57: - | H57: X | I57: - | J57: X | K57: -
A58: M_gthrd_e | B58: M_m02026 | C58: X | D58: X | E58: X | F58: - | G58: - | H58: X | I58: - | J58: X | K58: X
A59: M_5mta_e | B59: M_m01116 | C59: X | D59: - | E59: - | F59: - | G59: - | H59: - | I59: - | J59: - | K59: -
A60: M_andrstrnglc_c | B60: M_m01339 | C60: X | D60: X | E60: - | F60: - | G60: - | H60: - | I60: - | J60: X | K60: X
A61: M_avite2_e | B61: M_m01330 | C61: X | D61: X | E61: - | F61: - | G61: - | H61: - | I61: - | J61: X | K61: X
A62: M_bilirub_e | B62: M_m01396 | C62: X | D62: X | E62: - | F62: - | G62: - | H62: - | I62: - | J62: X | K62: X
A63: M_dhf_e | B63: M_m01700 | C63: X | D63: X | E63: X | F63: - | G63: X | H63: - | I63: - | J63: - | K63: X
A64: M_estriolglc_e | B64: M_m00402 | C64: X | D64: X | F64: - | G64: - | H64: - | I64: - | J64: X | K64: X
A65: M_nad_e | B65: M_m02552 | C65: X | D65: X | E65: X | F65: - | G65: - | H65: - | I65: X | J65: X | K65: X
A66: M_thf_e | B66: M_m02980 | C66: X | D66: X | E66: X | F66: - | G66: X | H66: - | I66: - | J66: - | K66: X
A67: M_uri_e | B67: M_m03123 | C67: X | D67: X | E67: X | F67: - | G67: X | H67: - | I67: X | J67: - | K67: X
A68: M_whhdca_e | B68: M_m00403 | C68: X | D68: X | E68: - | F68: - | G68: - | H68: - | I68: - | J68: - | K68: X
A69: M_camp_e | B69: M_m01419 | C69: X | D69: X | E69: - | F69: X | G69: - | H69: - | I69: - | J69: - | K69: X
A70: M_udp_e | B70: M_m03106 | C70: X | D70: X | E70: X | F70: X | G70: X | H70: - | I70: X | J70: X | K70: X
A71: M_dgmp_e | B71: M_m01686 | C71: X | D71: - | E71: X | F71: - | G71: X | H71: - | I71: - | J71: - | K71: -
A72: M_amp_e | B72: M_m01334 | C72: X | D72: X | E72: X | F72: X | G72: X | H72: - | I72: X | J72: X | K72: X
A73: M_2425dhvitd3_e | B73: M_m00035 | C73: X | D73: X | E73: X | F73: - | G73: - | H73: - | I73: - | J73: - | K73: X
A74: M_25hvitd2_e | B74: M_m00620 | C74: X | D74: X | E74: X | F74: - | G74: - | H74: - | I74: - | J74: - | K74: X
A75: M_adp_e | B75: M_m01285 | C75: X | D75: X | E75: X | F75: X | G75: X | H75: X | I75: X | J75: X | K75: X
A76: M_aprgstrn_e | B76: M_m00580 | C76: X | D76: X | E76: - | F76: - | G76: - | H76: - | I76: - | J76: - | K76: X
A77: M_decdicrn_e | J77: -
A78: M_estroneglc_e | B78: M_m01795 | C78: X | D78: X | E78: - | F78: - | G78: - | H78: - | I78: - | J78: X | K78: X
A79: M_glu_L_e | B79: M_m01974 | C79: X | D79: X | E79: X | F79: - | G79: X | H79: - | I79: - | J79: X | K79: X
A80: M_HC01361_e | B80: M_m01704 | C80: X | D80: X | E80: - | F80: - | G80: - | H80: - | I80: - | J80: - | K80: X
A81: M_HC02176_e | B81: M_m02344 | C81: X | D81: X | E81: - | F81: - | G81: X | H81: - | I81: - | J81: X | K81: -
A82: M_HC02191_e | B82: M_m02402 | C82: X | D82: X | E82: - | F82: - | G82: - | H82: X | I82: - | J82: X | K82: -
A83: M_ins_e | B83: M_m02170 | C83: X | D83: X | E83: X | F83: - | G83: - | H83: - | I83: - | J83: - | K83: X
A84: M_ocdca_e | B84: M_m02938 | C84: X | D84: X | G84: X | J84: X
A85: M_ttdca_e | B85: M_m02494 | C85: X | D85: X | G85: X | J85: X
A86: M_udpgal_e | B86: M_m03107 | C86: X | D86: - | E86: - | F86: X | G86: - | H86: - | I86: - | J86: X | K86: -
A87: M_vitd3_e | B87: M_m03142 | C87: X | D87: X | E87: X | F87: - | G87: - | H87: - | I87: - | J87: - | K87: X
A88: M_1p2cbxl | B88: M_m00558 | C88: X | D88: - | E88: - | F88: - | G88: - | H88: - | I88: - | J88: - | K88: -
A89: M_1p3h5c | B89: M_m02320 | C89: X | D89: - | E89: X | F89: - | G89: - | H89: - | I89: - | J89: - | K89: -
A90: M_2c23dh56dhoxin | B90: M_m00638 | C90: X | D90: - | E90: - | F90: - | G90: - | H90: - | I90: - | J90: - | K90: -
A91: M_2coum | B91: M_m01578 | C91: X | D91: - | E91: - | F91: - | G91: - | H91: - | I91: - | J91: - | K91: -
A92: M_2mop | B92: M_m00661 | C92: X | D92: - | E92: X | F92: - | G92: - | H92: - | I92: - | J92: - | K92: -
A93: M_2obut | B93: M_m00671 | C93: X | D93: - | E93: X | F93: - | G93: - | H93: - | I93: - | J93: - | K93: -
A94: M_2oxoadp | B94: M_m00670 | C94: X | D94: - | E94: X | F94: - | G94: - | H94: - | I94: - | J94: - | K94: -
A95: M_2pg | B95: M_m00674 | C95: X | D95: - | E95: - | F95: - | G95: - | H95: - | I95: - | J95: - | K95: -
A96: M_3aib | B96: M_m02325 | C96: X | D96: X | E96: X | F96: - | G96: - | H96: - | I96: - | J96: - | K96: X
A97: M_3aib_D | B97: M_m01633 | C97: X | D97: X | E97: X | F97: - | G97: - | H97: - | I97: - | J97: - | K97: X
A98: M_3dsphgn | B98: M_m00769 | C98: X | D98: - | E98: - | F98: - | G98: - | H98: - | I98: - | J98: - | K98: -
A99: M_3hpp | B99: M_m02142 | C99: - | D99: - | E99: X | F99: - | G99: - | H99: - | I99: - | J99: - | K99: -
A100: M_3mob | B100: M_m00824 | C100: X | D100: - | E100: X | F100: - | G100: - | H100: - | I100: - | J100: - | K100: -
A101: M_3pg | B101: M_m00913 | C101: X | D101: - | E101: X | F101: - | G101: - | H101: - | I101: - | J101: - | K101: -
A102: M_3uib | B102: M_m00922 | C102: X | D102: - | E102: - | F102: - | G102: - | H102: - | I102: - | J102: - | K102: -
A103: M_3ump | B103: M_m00921 | C103: X | D103: - | E103: - | F103: - | G103: - | H103: - | I103: - | J103: - | K103: -
A104: M_42A3HP24DB | B104: M_m00924 | C104: X | D104: - | E104: - | F104: - | G104: - | H104: - | I104: - | J104: - | K104: -
A105: M_4aabutn | B105: M_m00952 | C105: X | D105: - | E105: - | F105: - | G105: - | H105: - | I105: - | J105: - | K105: -
A106: M_4abut | B106: M_m01708 | C106: X | D106: - | E106: X | H106: - | I106: - | J106: - | K106: -
A107: M_4hglusa | B107: M_m02327 | C107: - | D107: - | E107: X | F107: - | G107: - | H107: - | I107: - | J107: - | K107: -
A108: M_4hpro_LT | B108: M_m03037 | C108: X | D108: - | E108: X | F108: - | G108: - | H108: - | I108: - | J108: - | K108: -
A109: M_5a2opntn | B109: M_m01073 | C109: - | D109: - | E109: - | F109: - | G109: - | H109: X | I109: - | J109: - | K109: -
A110: M_5aop | B110: M_m01074 | C110: X | D110: - | E110: X | F110: - | G110: - | H110: - | I110: - | J110: - | K110: -
A111: M_5oxpro | B111: M_m01127 | C111: X | D111: - | E111: - | F111: - | G111: - | H111: - | I111: - | J111: - | K111: -
A112: M_6a2ohxnt | B112: M_m02795 | C112: X | D112: - | E112: - | F112: - | G112: - | H112: X | I112: - | J112: X | K112: -
A113: M_6pgl | B113: M_m01961 | C113: X | D113: - | E113: - | F113: - | G113: - | H113: - | I113: - | J113: X | K113: -
A114: M_aact | B114: M_m01332 | C114: X | D114: - | E114: X | F114: - | G114: - | H114: - | I114: - | J114: - | K114: -
A115: M_abt | B115: M_m02338 | C115: X | D115: X | E115: - | F115: - | G115: - | H115: - | I115: - | J115: - | K115: X
A116: M_acac | B116: M_m01253 | C116: X | D116: X | E116: X | F116: - | G116: - | H116: - | I116: - | J116: - | K116: X
A117: M_acetol | B117: M_m02148 | C117: X | D117: - | E117: - | F117: - | G117: - | H117: - | I117: - | J117: - | K117: -
A118: M_acglu | B118: M_m02536 | C118: - | D118: - | E118: X | F118: - | G118: - | H118: - | I118: - | J118: - | K118: -
A119: M_ade | B119: M_m01279 | C119: X | D119: X | E119: - | F119: - | G119: X | H119: - | I119: - | J119: - | K119: X
A120: M_adpac | B120: M_m00666 | C120: - | D120: - | E120: X | F120: - | H120: - | I120: - | J120: - | K120: -
A121: M_ala_B | B121: M_m01383 | C121: X | D121: X | E121: X | F121: - | G121: - | H121: - | I121: - | J121: - | K121: X
A122: M_ala_D | B122: M_m01638 | C122: X | D122: X | E122: - | F122: - | G122: X | H122: X | I122: - | J122: - | K122: X
A123: M_ala_L | B123: M_m01307 | C123: X | D123: X | E123: X | F123: - | G123: X | H123: X | I123: - | J123: - | K123: X
A124: M_asn_L | B124: M_m01369 | C124: X | D124: X | E124: X | F124: X | G124: X | H124: - | I124: - | J124: - | K124: X
A125: M_bamppald | B125: M_m00760 | C125: X | D125: - | E125: - | F125: - | G125: - | H125: - | I125: - | J125: - | K125: -
A126: M_bgly | B126: M_m02123 | C126: X | D126: - | E126: - | F126: - | G126: - | H126: - | I126: - | J126: - | K126: -
A127: M_bz | B127: M_m01380 | C127: X | D127: - | E127: - | F127: - | G127: - | H127: - | I127: - | J127: X | K127: -
A128: M_C01601 | B128: M_m02614 | C128: X | D128: X | E128: - | F128: - | G128: - | H128: - | I128: - | J128: - | K128: X
A129: M_C02356 | B129: M_m00169 | C129: X | D129: - | E129: - | F129: - | G129: - | H129: - | I129: - | J129: - | K129: -
A130: M_C08261 | B130: M_m01372 | C130: X | D130: - | E130: - | F130: - | G130: - | H130: - | I130: - | J130: - | K130: -
A131: M_c4crn | B131: M_m02635 | C131: X | D131: - | E131: X | F131: - | G131: - | H131: - | I131: - | J131: - | K131: -
A132: M_cala | B132: M_m00923 | C132: X | D132: - | E132: - | F132: - | G132: - | H132: - | I132: - | J132: - | K132: -
A133: M_cdpchol | B133: M_m01425 | C133: X | D133: - | E133: - | F133: - | G133: - | H133: - | I133: - | J133: X | K133: -
A134: M_CE0932 | B134: M_m02766 | C134: - | D134: - | E134: - | F134: - | G134: - | H134: X | I134: - | J134: -
A135: M_CE2122 | B135: M_m02478 | C135: X | D135: - | E135: - | F135: - | G135: - | H135: - | I135: - | J135: - | K135: -
A136: M_CE2416 | B136: M_m00077 | C136: - | D136: - | E136: - | F136: - | G136: - | H136: X | I136: - | J136: - | K136: -
A137: M_CE2847 | B137: M_m01846 | C137: X | D137: - | E137: - | F137: - | G137: - | H137: - | I137: - | J137: - | K137: -
A138: M_CE4788 | B138: M_m01250 | C138: X | D138: - | E138: - | F138: - | G138: - | H138: X | I138: - | J138: - | K138: -
A139: M_CE5526 | B139: M_m00363 | C139: X | D139: - | E139: - | F139: - | G139: - | H139: - | I139: - | J139: - | K139: -
A140: M_CE5527 | B140: M_m00313 | C140: X | D140: - | E140: - | F140: - | G140: - | H140: - | I140: - | J140: - | K140: -
A141: M_CE5536 | B141: M_m01292 | C141: X | D141: - | E141: - | F141: - | G141: - | H141: - | I141: - | J141: - | K141: -
A142: M_CE5541 | B142: M_m01293 | C142: X | D142: - | E142: - | F142: - | G142: - | H142: - | I142: - | J142: - | K142: -
A143: M_CE5665 | B143: M_m02361 | C143: X | D143: - | E143: - | F143: - | G143: - | H143: - | I143: - | J143: - | K143: -
A144: M_cgly | B144: M_m01626 | C144: X | D144: X | E144: - | F144: - | G144: - | H144: - | I144: - | J144: - | K144: X
A145: M_cit | B145: M_m01587 | C145: X | D145: X | E145: X | F145: - | G145: - | H145: - | I145: - | J145: - | K145: X
A146: M_coa | B146: M_m01597 | C146: X | D146: - | E146: X | F146: X | G146: X | H146: X | I146: X | J146: X | K146: -
A147: M_coumarin | B147: M_m01617 | C147: X | D147: X | E147: - | F147: - | G147: - | H147: - | I147: - | J147: - | K147: X
A148: M_crn | B148: M_m02348 | C148: X | D148: X | E148: X | F148: - | G148: - | H148: X | I148: - | J148: X | K148: X
A149: M_crtn | B149: M_m01621 | C149: X | D149: X | E149: - | F149: - | G149: - | H149: - | I149: - | J149: - | K149: X
A150: M_cys_L | B150: M_m01628 | C150: X | D150: X | E150: X | F150: - | G150: X | H150: - | I150: - | J150: - | K150: X
A151: M_dgdp | B151: M_m01680 | C151: X | D151: - | E151: X | F151: - | G151: - | H151: - | I151: X | J151: - | K151: X
A152: M_dgmp | B152: M_m01686 | C152: X | D152: - | E152: X | F152: - | G152: X | H152: - | I152: - | J152: - | K152: -
A153: M_dgtp | B153: M_m01688 | C153: X | D153: - | E153: X | F153: - | G153: - | H153: - | I153: X | J153: - | K153: -
A154: M_dha | B154: M_m01984 | C154: - | D154: X | E154: - | F154: - | G154: - | H154: - | I154: - | J154: - | K154: -
A155: M_dmgly | B155: M_m01708 | C155: X | D155: - | E155: X | F155: - | G155: - | H155: - | I155: - | J155: - | K155: -
A156: M_dolp_L | B156: M_m01733 | C156: X | D156: - | E156: - | F156: - | G156: - | H156: - | I156: - | J156: X | K156: -
A157: M_dolp_U | B157: M_m01733 | C157: X | D157: - | E157: - | F157: - | G157: - | H157: - | I157: - | J157: X | K157: -
A158: M_dopaqn | B158: M_m02356 | C158: X | D158: - | E158: - | F158: - | G158: - | H158: - | I158: - | J158: - | K158: -
A159: M_elaid | B159: M_m01778 | C159: X | D159: X | E159: - | F159: - | G159: X | H159: - | I159: - | J159: X | K159: -
A160: M_eryth | B160: M_m02359 | C160: X | D160: - | E160: - | F160: - | G160: - | H160: - | I160: - | J160: - | K160: -
A161: M_estroneglc | B161: M_m01795 | C161: X | D161: X | E161: - | F161: - | G161: - | H161: - | I161: - | J161: X | K161: X
A162: M_fru | B162: M_m01840 | C162: X | D162: X | E162: - | F162: - | G162: - | H162: - | I162: - | J162: - | K162: X
A163: M_fum | B163: M_m01862 | C163: X | D163: - | E163: X | F163: - | G163: - | H163: - | I163: - | J163: - | K163: -
A164: M_gal | B164: M_m01910 | C164: X | D164: X | E164: - | F164: - | G164: X | H164: - | I164: - | J164: - | K164: X
A165: M_glac | B165: M_m01685 | C165: X | D165: - | E165: - | F165: - | G165: - | H165: - | I165: - | J165: X | K165: -
A166: M_glc_D | B166: M_m01965 | C166: X | D166: X | E166: - | F166: X | G166: X | H166: - | I166: - | J166: X | K166: X
A167: M_glcn | B167: M_m01683 | C167: X | D167: - | E167: - | F167: - | G167: - | H167: - | I167: - | J167: - | K167: -
A168: M_gln_L | B168: M_m01975 | C168: X | D168: X | E168: X | F168: - | G168: X | H168: - | I168: - | J168: - | K168: X
A169: M_glu_L | B169: M_m01974 | C169: X | D169: X | E169: X | F169: - | G169: X | H169: - | I169: - | J169: X | K169: X
A170: M_glu5sa | B170: M_m02374 | C170: X | D170: - | E170: X | F170: - | G170: - | H170: - | I170: - | J170: - | K170: -
A171: M_glyald | B171: M_m01981 | C171: X | D171: - | E171: X | F171: - | G171: - | H171: - | I171: - | J171: - | K171: -
A172: M_glyb | B172: M_m01393 | C172: X | D172: X | E172: X | F172: - | G172: - | H172: - | I172: - | J172: - | K172: X
A173: M_glygly | B173: M_m02005 | C173: X | D173: - | E173: - | F173: - | G173: - | H173: - | I173: - | J173: - | K173: -
A174: M_glysar | B174: M_m03172 | C174: X | D174: - | E174: - | F174: - | G174: - | H174: - | I174: - | J174: - | K174: -
A175: M_gthox | B175: M_m02027 | C175: X | D175: X | E175: X | F175: - | G175: - | H175: - | I175: - | J175: X | K175: X
A176: M_gthrd | B176: M_m02026 | C176: X | D176: X | E176: X | F176: - | G176: - | H176: X | I176: - | J176: X | K176: X
A177: M_guln | B177: M_m02378 | C177: X | D177: - | E177: - | F177: - | G177: - | H177: - | I177: - | J177: X | K177: -
A178: M_h | B178: M_m02039 | C178: X | D178: X | E178: X | F178: X | G178: X | H178: X | I178: X | J178: X | K178: X
A179: M_h2o | B179: M_m02040 | C179: X | D179: X | E179: X | F179: X | G179: X | H179: X | I179: X | J179: X | K179: X
A180: M_HC00900 | B180: M_m02479 | C180: X | D180: - | E180: X | F180: - | G180: - | H180: - | I180: - | J180: - | K180: -
A181: M_HC01111 | B181: M_m01911 | C181: X | D181: - | E181: - | F181: - | G181: - | H181: - | I181: - | J181: - | K181: -
A182: M_HC02149 | B182: M_m02657 | C182: X | D182: - | E182: X | F182: - | G182: - | H182: X | I182: - | J182: - | K182: -
A183: M_his_L | B183: M_m02125 | C183: X | D183: X | E183: X | F183: - | G183: X | H183: - | I183: - | J183: - | K183: X
A184: M_hom_L | B184: M_m02136 | C184: X | D184: X | E184: - | F184: - | G184: - | H184: - | I184: - | J184: - | K184: -
A185: M_hpdca | B185: M_m02456 | C185: X | D185: X | E185: - | F185: - | G185: X | H185: - | I185: - | J185: X | K185: -
A186: M_hxan | B186: M_m02159 | C186: X | D186: X | E186: - | F186: - | G186: - | H186: X | I186: - | J186: - | K186: X
A187: M_hyptaur | B187: M_m02157 | C187: X | D187: - | E187: - | F187: - | G187: - | H187: - | I187: - | J187: - | K187: -
A188: M_icit | B188: M_m02183 | C188: X | D188: - | E188: X | F188: - | G188: - | H188: X | I188: - | J188: - | K188: -
A189: M_id3acald | B189: M_m02168 | C189: X | D189: - | E189: X | F189: - | G189: - | H189: - | I189: - | J189: - | K189: -
A190: M_ile_L | B190: M_m02184 | C190: X | D190: X | E190: X | F190: - | G190: X | H190: - | I190: - | J190: - | K190: X
A191: M_inost | B191: M_m02171 | C191: X | D191: X | E191: - | F191: - | G191: - | H191: - | I191: - | J191: X | K191: X
A192: M_ins | B192: M_m02170 | C192: X | D192: X | E192: X | F192: - | G192: - | H192: - | I192: - | J192: - | K192: X
A193: M_L2aadp6sa | B193: M_m00631 | C193: X | D193: - | E193: X | F193: - | G193: - | H193: - | I193: - | J193: - | K193: -
A194: M_lald_D | B194: M_m01715 | C194: X | D194: - | E194: - | F194: - | G194: - | H194: - | I194: - | J194: - | K194: -
A195: M_lald_L | B195: M_m02329 | C195: X | D195: X | E195: - | F195: - | G195: - | H195: - | I195: - | J195: - | K195: -
A196: M_Lcystin | B196: M_m01629 | C196: X | D196: X | E196: - | F196: - | G196: - | H196: - | I196: - | J196: - | K196: X
A197: M_leu_L | B197: M_m02360 | C197: X | D197: X | E197: X | F197: - | G197: X | H197: - | I197: - | J197: - | K197: X
A198: M_Lpipecol | B198: M_m02413 | C198: - | D198: - | E198: - | F198: - | G198: - | H198: X | I198: - | J198: - | K198: -
A199: M_man | B199: M_m02453 | C199: X | D199: X | E199: - | F199: X | G199: X | H199: - | I199: - | J199: X | K199: X
A200: M_met_L | B200: M_m02471 | C200: X | D200: X | E200: X | F200: - | G200: X | H200: - | I200: - | J200: - | K200: X
... 56 more rows

Sheet S-GPR_&_GPR
A1: Reaction_ID | B1: S-GPR | C1: GPR
A2: R_HMR_3905
A3: R_HMR_3907 | B3: [[[AKR1A1*1]]] | C3: [[[AKR1A1]]]
A4: R_HMR_4097 | B4: [[[[ACAS2*2]]]] | C4: [[[[ACAS2]]]]
A5: R_HMR_4099 | B5: [[[[ACAS2*2]]]] | C5: [[[[ACAS2]]]]
A6: R_HMR_4108 | B6: [[[[ACAS2*2]]]] | C6: [[[[ACAS2]]]]
A7: R_HMR_4133 | B7: [[[[ACAS2*2]]]] | C7: [[[[ACAS2]]]]
A8: R_HMR_4137
A9: R_HMR_4281 | B9: [[[LDHA*1]] or [[LDHAL6A*1]] or [[LDHAL6B*1]] or [[LDHB*1]] or [[LDHC*1]]] | C9: [[[LDHA]] or [[LDHAL6A]] or [[LDHAL6B]] or [[LDHB]] or [[LDHC]]]
A10: R_HMR_4388 | B10: [[[LDHA*1]] or [[LDHAL6A*1]] or [[LDHAL6B*1]] or [[LDHB*1]] or [[LDHC*1]]] | C10: [[[LDHA]] or [[LDHAL6A]] or [[LDHAL6B]] or [[LDHB]] or [[LDHC]]]
A11: R_HMR_4283 | B11: [[[ALDH1A3*1]] or [[ALDH3A1*1]] or [[ALDH3B1*1]] or [[ALDH3B2*1]]] | C11: [[[ALDH1A3]] or [[ALDH3A1]] or [[ALDH3B1]] or [[ALDH3B2]]]
A12: R_HMR_8357 | B12: [[[[ALDH2*4]] or [[ALDH3A2*2 and ALDH9A1*4 and ALDH2*8]] or [[ALDH9A1*4]]]] | C12: [[[[ALDH2]] or [[ALDH3A2 and ALDH9A1 and ALDH2]] or [[ALDH9A1]]]]
A13: R_HMR_4379 | B13: [[[[PFKM*1 and PFKP*1]]]] | C13: [[[[PFKM and PFKP]]]]
A14: R_HMR_4301 | B14: [[[[PFKM*1 and PFKP*1]]]] | C14: [[[[PFKM and PFKP]]]]
A15: R_HMR_4355 | B15: [[[[ALDOA*4]] or [[ALDOB*4]] or [[ALDOC*4]]]] | C15: [[[[ALDOA]] or [[ALDOB]] or [[ALDOC]]]]
A16: R_HMR_4358 | B16: [[[[PKM2*1]]]] | C16: [[[[PKM2]]]]
A17: R_HMR_4360
A18: R_HMR_4362
A19: R_HMR_4363 | B19: [[[[ENO1*2]] or [[ENO2*2]] or [[ENO3*2]]]] | C19: [[[[ENO1]] or [[ENO2]] or [[ENO3]]]]
A20: R_HMR_4365 | B20: [[[[PGAM1*2]] or [[PGAM2*1]] or [[PGAM2*2]]]] | C20: [[[[PGAM1]] or [[PGAM2]] or [[PGAM2]]]]
A21: R_HMR_4368 | B21: [[[[PGK2*1 and PGK1*1]]]] | C21: [[[[PGK2 and PGK1]]]]
A22: R_HMR_4370 | B22: [[[ACYP1*1]] or [[ACYP2*1]]] | C22: [[[ACYP1]] or [[ACYP2]]]
A23: R_HMR_4371 | B23: [[[[PGAM1*2]] or [[PGAM2*1]] or [[PGAM2*2]]]] | C23: [[[[PGAM1]] or [[PGAM2]] or [[PGAM2]]]]
A24: R_HMR_4372 | B24: [[[BPGM*1]]] | C24: [[[BPGM]]]
A25: R_HMR_4373 | B25: [[[[GAPDHS*1]] or [[GAPDHS*4]]]] | C25: [[[[GAPDHS]] or [[GAPDHS]]]]
A26: R_HMR_4375 | B26: [[[[ALDOA*4]] or [[ALDOB*4]] or [[ALDOC*4]]]] | C26: [[[[ALDOA]] or [[ALDOB]] or [[ALDOC]]]]
A27: R_HMR_4377 | B27: [[[[FBP2*1]] or [[FBP2*4]]]] | C27: [[[[FBP2]] or [[FBP2]]]]
A28: R_HMR_4381 | B28: [[[[GPI*1]]]] | C28: [[[[GPI]]]]
A29: R_HMR_4391 | B29: [[[[TPI1*2]]]] | C29: [[[[TPI1]]]]
A30: R_HMR_4394 | B30: [[[ADPGK*1]]] | C30: [[[ADPGK]]]
A31: R_HMR_4396
A32: R_HMR_4521 | B32: [[[[G6PC*1 and G6PC3*1 and G6PC2*1]]]] | C32: [[[[G6PC and G6PC3 and G6PC2]]]]
A33: R_HMR_6410 | B33: [[[[[[PDHB]*2 and [PDHA1]*2]*1 or [[PDHB]*2 and [PDHA1]*2]*30 and [DLAT]*60 and [[PDHX]]*1 and [[DLD]*2]*6]*1]]] | C33: [[[[[[PDHB] and [PDHA1]] or [[PDHB] and [PDHA1]] and [DLAT] and [[PDHX]] and [[DLD]]]]]]
A34: R_HMR_6412 | B34: [[[[[[[[[[DLAT*1]]]*2 and [[DLAT*60] and [PDHA1*60] and [PDHX*1]]]*12 and [[PDHB*288]]]*2 and [[[DLAT]*1]]]*1 or [[PDHB]*2 and [PDHA1]*2]*30 and [DLAT]*60 and [[PDHX]]*1 and [[DLD]*2]*6]*1]]] | C34: [[[[[[[[[[DLAT]]] and [[DLAT] and [PDHA1] and [PDHX]]] and [[PDHB]]] and [[[DLAT]]]] or [[PDHB] and [PDHA1]] and [DLAT] and [[PDHX]] and [[DLD]]]]]]
A35: R_HMR_7745 | B35: [[[[GALM*2]]]] | C35: [[[[GALM]]]]
A36: R_HMR_7746 | B36: [[[GCK*1]]] | C36: [[[GCK]]]
A37: R_HMR_7747 | B37: [[[ADPGK*1]]] | C37: [[[ADPGK]]]
A38: R_HMR_7748 | B38: [[[[GPI*1]]]] | C38: [[[[GPI]]]]
A39: R_HMR_7749 | B39: [[[[GPI*1]]]] | C39: [[[[GPI]]]]
A40: R_HMR_8360 | B40: [[[[CAT*4]]]] | C40: [[[[CAT]]]]
A41: R_HMR_8652 | B41: [[[[G6PC*1 and G6PC3*1 and G6PC2*1]]]] | C41: [[[[G6PC and G6PC3 and G6PC2]]]]
A42: R_HMR_8757
A43: R_HMR_3989 | B43: [[[GAA*1]] or [[GANC*1]] or [[MGAM*1]]] | C43: [[[GAA]] or [[GANC]] or [[MGAM]]]
A44: R_HMR_4122 | B44: [[[[UGDH*6]]]] | C44: [[[[UGDH]]]]
A45: R_HMR_4837 | B45: [[[TREH*1]]] | C45: [[[TREH]]]
A46: R_HMR_5395 | B46: [[[[GYG1*2]] or [[GYG2*2]]]] | C46: [[[[GYG1]] or [[GYG2]]]]
A47: R_HMR_5396 | B47: [[[[GYS1*4]]]] | C47: [[[[GYS1]]]]
A48: R_HMR_9727 | B48: [[[[GYS1*4]]]] | C48: [[[[GYS1]]]]
A49: R_HMR_5397 | B49: [[[GBE1*1]]] | C49: [[[GBE1]]]
A50: R_HMR_5398 | B50: [[[[PYGB*2]] or [[PYGL*2]] or [[PYGM*2]]]] | C50: [[[[PYGB]] or [[PYGL]] or [[PYGM]]]]
A51: R_HMR_5399 | B51: [[[AGL*1]]] | C51: [[[AGL]]]
A52: R_HMR_5400 | B52: [[[[AGL*1]]]] | C52: [[[[AGL]]]]
A53: R_HMR_5401 | B53: [[[[PYGB*2]] or [[PYGL*2]] or [[PYGM*2]]]] | C53: [[[[PYGB]] or [[PYGL]] or [[PYGM]]]]
A54: R_HMR_8568 | B54: [[[AMY1A*1]] or [[AMY1B*1]] or [[AMY1C*1]] or [[AMY2A*1]] or [[AMY2B*1]]] | C54: [[[AMY1A]] or [[AMY1B]] or [[AMY1C]] or [[AMY2A]] or [[AMY2B]]]
A55: R_HMR_8569 | B55: [[[AMY1A*1]] or [[AMY1B*1]] or [[AMY1C*1]] or [[AMY2A*1]] or [[AMY2B*1]]] | C55: [[[AMY1A]] or [[AMY1B]] or [[AMY1C]] or [[AMY2A]] or [[AMY2B]]]
A56: R_HMR_8570 | B56: [[[AMY1A*1]] or [[AMY1B*1]] or [[AMY1C*1]] or [[AMY2A*1]] or [[AMY2B*1]]] | C56: [[[AMY1A]] or [[AMY1B]] or [[AMY1C]] or [[AMY2A]] or [[AMY2B]]]
A57: R_HMR_8571 | B57: [[[AMY1A*1]] or [[AMY1B*1]] or [[AMY1C*1]] or [[AMY2A*1]] or [[AMY2B*1]]] | C57: [[[AMY1A]] or [[AMY1B]] or [[AMY1C]] or [[AMY2A]] or [[AMY2B]]]
A58: R_HMR_8572 | B58: [[[AMY1A*1]] or [[AMY1B*1]] or [[AMY1C*1]] or [[AMY2A*1]] or [[AMY2B*1]]] | C58: [[[AMY1A]] or [[AMY1B]] or [[AMY1C]] or [[AMY2A]] or [[AMY2B]]]
A59: R_HMR_8573 | B59: [[[AMY1A*1]] or [[AMY1B*1]] or [[AMY1C*1]] or [[AMY2A*1]] or [[AMY2B*1]]] | C59: [[[AMY1A]] or [[AMY1B]] or [[AMY1C]] or [[AMY2A]] or [[AMY2B]]]
A60: R_HMR_8574 | B60: [[[AMY1A*1]] or [[AMY1B*1]] or [[AMY1C*1]] or [[AMY2A*1]] or [[AMY2B*1]]] | C60: [[[AMY1A]] or [[AMY1B]] or [[AMY1C]] or [[AMY2A]] or [[AMY2B]]]
A61: R_HMR_8575 | B61: [[[AMY1A*1]] or [[AMY1B*1]] or [[AMY1C*1]] or [[AMY2A*1]] or [[AMY2B*1]]] | C61: [[[AMY1A]] or [[AMY1B]] or [[AMY1C]] or [[AMY2A]] or [[AMY2B]]]
A62: R_HMR_8576 | B62: [[[AMY1A*1]] or [[AMY1B*1]] or [[AMY1C*1]] or [[AMY2A*1]] or [[AMY2B*1]]] | C62: [[[AMY1A]] or [[AMY1B]] or [[AMY1C]] or [[AMY2A]] or [[AMY2B]]]
A63: R_HMR_8577 | B63: [[[AMY1A*1]] or [[AMY1B*1]] or [[AMY1C*1]] or [[AMY2A*1]] or [[AMY2B*1]]] | C63: [[[AMY1A]] or [[AMY1B]] or [[AMY1C]] or [[AMY2A]] or [[AMY2B]]]
A64: R_HMR_8578 | B64: [[[AMY1A*1]] or [[AMY1B*1]] or [[AMY1C*1]] or [[AMY2A*1]] or [[AMY2B*1]]] | C64: [[[AMY1A]] or [[AMY1B]] or [[AMY1C]] or [[AMY2A]] or [[AMY2B]]]
A65: R_HMR_8579 | B65: [[[AMY1A*1]] or [[AMY1B*1]] or [[AMY1C*1]] or [[AMY2A*1]] or [[AMY2B*1]]] | C65: [[[AMY1A]] or [[AMY1B]] or [[AMY1C]] or [[AMY2A]] or [[AMY2B]]]
A66: R_HMR_8581 | B66: [[[AMY1A*1]] or [[AMY1B*1]] or [[AMY1C*1]] or [[AMY2A*1]] or [[AMY2B*1]]] | C66: [[[AMY1A]] or [[AMY1B]] or [[AMY1C]] or [[AMY2A]] or [[AMY2B]]]
A67: R_HMR_8591 | B67: [[[GAA*1]] or [[GANC*1]] or [[MGAM*1]]] | C67: [[[GAA]] or [[GANC]] or [[MGAM]]]
A68: R_HMR_8592 | B68: [[[GAA*1]] or [[GANC*1]] or [[MGAM*1]]] | C68: [[[GAA]] or [[GANC]] or [[MGAM]]]
A69: R_HMR_8580 | B69: [[[AMY1A*1]] or [[AMY1B*1]] or [[AMY1C*1]] or [[AMY2A*1]] or [[AMY2B*1]]] | C69: [[[AMY1A]] or [[AMY1B]] or [[AMY1C]] or [[AMY2A]] or [[AMY2B]]]
A70: R_HMR_8582 | B70: [[[AMY1A*1]] or [[AMY1B*1]] or [[AMY1C*1]] or [[AMY2A*1]] or [[AMY2B*1]]] | C70: [[[AMY1A]] or [[AMY1B]] or [[AMY1C]] or [[AMY2A]] or [[AMY2B]]]
A71: R_HMR_8587 | B71: [[[GAA*1]] or [[GANC*1]] or [[MGAM*1]]] | C71: [[[GAA]] or [[GANC]] or [[MGAM]]]
A72: R_HMR_8589 | B72: [[[GAA*1]] or [[GANC*1]] or [[MGAM*1]]] | C72: [[[GAA]] or [[GANC]] or [[MGAM]]]
A73: R_HMR_8583 | B73: [[[MGAM*1]]] | C73: [[[MGAM]]]
A74: R_HMR_8584 | B74: [[[[[SI]*1 and [SI]*1]*1]]] | C74: [[[[[SI] and [SI]]]]]
A75: R_HMR_8585 | B75: [[[PGM2L1*1]]] | C75: [[[PGM2L1]]]
A76: R_HMR_3944 | B76: [[[[UGP2*8]]]] | C76: [[[[UGP2]]]]
A77: R_HMR_4128 | B77: [[[[GALE*4]]]] | C77: [[[[GALE]]]]
A78: R_HMR_4130 | B78: [[[GALK1*1]]] | C78: [[[GALK1]]]
A79: R_HMR_4131 | B79: [[[GALT*1]]] | C79: [[[GALT]]]
A80: R_HMR_4132 | B80: [[[GALT*1]]] | C80: [[[GALT]]]
A81: R_HMR_4303 | B81: [[[[[SI]*1 and [SI]*1]*1]]] | C81: [[[[[SI] and [SI]]]]]
A82: R_HMR_4414 | B82: [[[GALK1*1]]] | C82: [[[GALK1]]]
A83: R_HMR_4415 | B83: [[[[LCT*2]]]] | C83: [[[[LCT]]]]
A84: R_HMR_4416 | B84: [[[GLB1*1]]] | C84: [[[GLB1]]]
A85: R_HMR_4774 | B85: [[[[PFKM*1 and PFKP*1]]]] | C85: [[[[PFKM and PFKP]]]]
A86: R_HMR_4775 | B86: [[[[PFKM*1 and PFKP*1]]]] | C86: [[[[PFKM and PFKP]]]]
A87: R_HMR_4831
A88: R_HMR_4832 | B88: [[[GLB1*1]]] | C88: [[[GLB1]]]
A89: R_HMR_7674 | B89: [[[[B4GALT1*1]]]] | C89: [[[[B4GALT1]]]]
A90: R_HMR_8761 | B90: [[[[KHK*2]]]] | C90: [[[[KHK]]]]
A91: R_HMR_8762 | B91: [[[[ALDOA*4]] or [[ALDOB*4]] or [[ALDOC*4]]]] | C91: [[[[ALDOA]] or [[ALDOB]] or [[ALDOC]]]]
A92: R_HMR_8764 | B92: [[[[LCT*2]]]] | C92: [[[[LCT]]]]
A93: R_HMR_8766 | B93: [[[AKR1B1*1]] or [[AKR1B10*1]]] | C93: [[[AKR1B1]] or [[AKR1B10]]]
A94: R_HMR_8767 | B94: [[[GALT*1]]] | C94: [[[GALT]]]
A95: R_HMR_0454 | B95: [[[TKFC*1]]] | C95: [[[TKFC]]]
A96: R_HMR_4297 | B96: [[[[PFKFB1*2]] or [[PFKFB2*2]] or [[PFKFB3*2]] or [[PFKFB4*2]]]] | C96: [[[[PFKFB1]] or [[PFKFB2]] or [[PFKFB3]] or [[PFKFB4]]]]
A97: R_HMR_4310 | B97: [[[[KHK*2]]]] | C97: [[[[KHK]]]]
A98: R_HMR_4315 | B98: [[[SORD*1]]] | C98: [[[SORD]]]
A99: R_HMR_4316 | B99: [[[AKR1B1*1]] or [[AKR1B10*1]]] | C99: [[[AKR1B1]] or [[AKR1B10]]]
A100: R_HMR_4317
A101: R_HMR_4318
A102: R_HMR_4319 | B102: [[[[HK2*1 and HK3*1 and GCK*1 and HK1*1]]]] | C102: [[[[HK2 and HK3 and GCK and HK1]]]]
A103: R_HMR_4320
A104: R_HMR_4356 | B104: [[[[ALDOA*4]] or [[ALDOB*4]] or [[ALDOC*4]]]] | C104: [[[[ALDOA]] or [[ALDOB]] or [[ALDOC]]]]
A105: R_HMR_4383 | B105: [[[MPI*1]]] | C105: [[[MPI]]]
A106: R_HMR_4385 | B106: [[[PMM1*1]] or [[PMM2*1]]] | C106: [[[PMM1]] or [[PMM2]]]
A107: R_HMR_4386 | B107: [[[GMPPA*1]] or [[GMPPB*1]]] | C107: [[[GMPPA]] or [[GMPPB]]]
A108: R_HMR_4387 | B108: [[[GMPPA*1]] or [[GMPPB*1]]] | C108: [[[GMPPA]] or [[GMPPB]]]
A109: R_HMR_4399 | B109: [[[GMDS*1]]] | C109: [[[GMDS]]]
A110: R_HMR_4400 | B110: [[[TSTA3*1]]] | C110: [[[TSTA3]]]
A111: R_HMR_4401 | B111: [[[FPGT*1]]] | C111: [[[FPGT]]]
A112: R_HMR_4402 | B112: [[[FUK*1]]] | C112: [[[FUK]]]
A113: R_HMR_4403
A114: R_HMR_4490 | B114: [[[[HK2*1 and HK3*1 and GCK*1 and HK1*1]]]] | C114: [[[[HK2 and HK3 and GCK and HK1]]]]
A115: R_HMR_4706 | B115: [[[[FBP2*1]] or [[FBP2*4]]]] | C115: [[[[FBP2]] or [[FBP2]]]]
A116: R_HMR_8768 | B116: [[[TSTA3*1]]] | C116: [[[TSTA3]]]
A117: R_HMR_4590 | B117: [[[DCXR*1]]] | C117: [[[DCXR]]]
A118: R_HMR_4591
A119: R_HMR_4592 | B119: [[[AKR1B1*1]] or [[AKR1B10*1]]] | C119: [[[AKR1B1]] or [[AKR1B10]]]
A120: R_HMR_4593
A121: R_HMR_4594 | B121: [[[DHDH*1]]] | C121: [[[DHDH]]]
A122: R_HMR_4595 | B122: [[[XYLB*1]]] | C122: [[[XYLB]]]
A123: R_HMR_8341 | B123: [[[AKR1A1*1]]] | C123: [[[AKR1A1]]]
A124: R_HMR_8342
A125: R_HMR_8344
A126: R_HMR_8352
A127: R_HMR_8353
A128: R_HMR_8726
A129: R_HMR_8727 | B129: [[[ALG5*1]]] | C129: [[[ALG5]]]
A130: R_HMR_8728
A131: R_HMR_8729 | B131: [[[UXS1*1]]] | C131: [[[UXS1]]]
A132: R_HMR_6537 | B132: [[[AKR1A1*1]]] | C132: [[[AKR1A1]]]
A133: R_HMR_1568 | B133: [[[ALDH1A3*1]] or [[ALDH3A1*1]] or [[ALDH3B1*1]] or [[ALDH3B2*1]]] | C133: [[[ALDH1A3]] or [[ALDH3A1]] or [[ALDH3B1]] or [[ALDH3B2]]]
A134: R_HMR_3853 | B134: [[[GLO1*1]]] | C134: [[[GLO1]]]
A135: R_HMR_3854 | B135: [[[AKR1B1*1]] or [[AKR1B10*1]]] | C135: [[[AKR1B1]] or [[AKR1B10]]]
A136: R_HMR_3855 | B136: [[[AKR1B1*1]] or [[AKR1B10*1]]] | C136: [[[AKR1B1]] or [[AKR1B10]]]
A137: R_HMR_3857 | B137: [[[HAGH*1]] or [[HAGHL*1]]] | C137: [[[HAGH]] or [[HAGHL]]]
A138: R_HMR_3859 | B138: [[[[LDHD*1]]]] | C138: [[[[LDHD]]]]
A139: R_HMR_4087
A140: R_HMR_4089 | B140: [[[ME1*1]] or [[ME3*1]]] | C140: [[[ME1]] or [[ME3]]]
A141: R_HMR_4091 | B141: [[[ME1*1]] or [[ME3*1]]] | C141: [[[ME1]] or [[ME3]]]
A142: R_HMR_4093 | B142: [[[ACOT12*1]]] | C142: [[[ACOT12]]]
A143: R_HMR_4095 | B143: [[[ACOT12*1]]] | C143: [[[ACOT12]]]
A144: R_HMR_4101 | B144: [[[[PCK2*1 and PCK1*1]]]] | C144: [[[[PCK2 and PCK1]]]]
A145: R_HMR_4103 | B145: [[[[PCK2*1 and PCK1*1]]]] | C145: [[[[PCK2 and PCK1]]]]
A146: R_HMR_4143 | B146: [[[[PC*1]]]] | C146: [[[[PC]]]]
A147: R_HMR_4193 | B147: [[[[PKM2*1]]]] | C147: [[[[PKM2]]]]
A148: R_HMR_8497 | B148: [[[AKR1A1*1]]] | C148: [[[AKR1A1]]]
A149: R_HMR_8498
A150: R_HMR_8499
A151: R_HMR_8500 | B151: [[[AKR1A1*1]]] | C151: [[[AKR1A1]]]
A152: R_HMR_8501 | B152: [[[GRHPR*1]]] | C152: [[[GRHPR]]]
A153: R_HMR_8502 | B153: [[[ADH1A*1]] or [[ADH1B*1]] or [[ADH1C*1]] or [[ADH4*1]] or [[ADH5*1]] or [[ADH6*1]] or [[ADH7*1]]] | C153: [[[ADH1A]] or [[ADH1B]] or [[ADH1C]] or [[ADH4]] or [[ADH5]] or [[ADH6]] or [[ADH7]]]
A154: R_HMR_8503 | B154: [[[ALDH1A3*1]] or [[ALDH3A1*1]] or [[ALDH3B1*1]] or [[ALDH3B2*1]]] | C154: [[[ALDH1A3]] or [[ALDH3A1]] or [[ALDH3B1]] or [[ALDH3B2]]]
A155: R_HMR_8504 | B155: [[[[ALDH2*4]] or [[ALDH3A2*2 and ALDH9A1*4 and ALDH2*8]] or [[ALDH9A1*4]]]] | C155: [[[[ALDH2]] or [[ALDH3A2 and ALDH9A1 and ALDH2]] or [[ALDH9A1]]]]
A156: R_HMR_8506 | B156: [[[[ALDH2*4]] or [[ALDH3A2*2 and ALDH9A1*4 and ALDH2*8]] or [[ALDH9A1*4]]]] | C156: [[[[ALDH2]] or [[ALDH3A2 and ALDH9A1 and ALDH2]] or [[ALDH9A1]]]]
A157: R_HMR_8507
A158: R_HMR_8508
A159: R_HMR_8509 | B159: [[[AKR1A1*1]]] | C159: [[[AKR1A1]]]
A160: R_HMR_8511 | B160: [[[HAGH*1]] or [[HAGHL*1]]] | C160: [[[HAGH]] or [[HAGHL]]]
A161: R_HMR_8512 | B161: [[[[LDHD*1]]]] | C161: [[[[LDHD]]]]
A162: R_HMR_8514 | B162: [[[[LDHD*1]]]] | C162: [[[[LDHD]]]]
A163: R_HMR_8516
A164: R_HMR_8517
A165: R_HMR_4280 | B165: [[[LDHA*1]] or [[LDHAL6A*1]] or [[LDHAL6B*1]] or [[LDHB*1]] or [[LDHC*1]]] | C165: [[[LDHA]] or [[LDHAL6A]] or [[LDHAL6B]] or [[LDHB]] or [[LDHC]]]
A166: R_HMR_0153 | B166: [[[[ACOT4*1 and ACOT2*1 and ACOT1*1]] or [[ACOT4*1 and ACOT2*1 and ACOT1*2]] or [[ACOT4*2 and ACOT2*1 and ACOT1*1]]]] | C166: [[[[ACOT4 and ACOT2 and ACOT1]] or [[ACOT4 and ACOT2 and ACOT1]] or [[ACOT4 and ACOT2 and ACOT1]]]]
A167: R_HMR_3212
A168: R_HMR_3797 | B168: [[[ACSS3*1]]] | C168: [[[ACSS3]]]
A169: R_HMR_3800
A170: R_HMR_4105 | B170: [[[MLYCD*1]]] | C170: [[[MLYCD]]]
A171: R_HMR_4106 | B171: [[[MLYCD*1]]] | C171: [[[MLYCD]]]
A172: R_HMR_4107 | B172: [[[MLYCD*1]]] | C172: [[[MLYCD]]]
A173: R_HMR_4282 | B173: [[[ALDH6A1*1]]] | C173: [[[ALDH6A1]]]
A174: R_HMR_4331 | B174: [[[[ACAS2*2]]]] | C174: [[[[ACAS2]]]]
A175: R_HMR_4459 | B175: [[[ACSS3*1]]] | C175: [[[ACSS3]]]
A176: R_HMR_4460 | B176: [[[ACSS3*1]]] | C176: [[[ACSS3]]]
A177: R_HMR_4464
A178: R_HMR_4497
A179: R_HMR_4741 | B179: [[[HIBCH*1]]] | C179: [[[HIBCH]]]
A180: R_HMR_8078
A181: R_HMR_9803
A182: R_HMR_9804
A183: R_HMR_0718 | B183: [[[L2HGDH*1]]] | C183: [[[L2HGDH]]]
A184: R_HMR_0719 | B184: [[[[PHGDH*4]]]] | C184: [[[[PHGDH]]]]
A185: R_HMR_1434 | B185: [[[[ACAT2*1]] or [[ACAT2*4]]]] | C185: [[[[ACAT2]] or [[ACAT2]]]]
A186: R_HMR_1436 | B186: [[[AACS*1]]] | C186: [[[AACS]]]
A187: R_HMR_3163
A188: R_HMR_4461 | B188: [[[[BDH2*1 and BDH1*4]] or [[BDH2*1]]]] | C188: [[[[BDH2 and BDH1]] or [[BDH2]]]]
A189: R_HMR_4604 | B189: [[[[HMGCS1*2 and HMGCS2*1]] or [[HMGCS1*2]]]] | C189: [[[[HMGCS1 and HMGCS2]] or [[HMGCS1]]]]
A190: R_HMR_5351 | B190: [[[LDHA*1]] or [[LDHAL6A*1]] or [[LDHAL6B*1]] or [[LDHB*1]] or [[LDHC*1]]] | C190: [[[LDHA]] or [[LDHAL6A]] or [[LDHAL6B]] or [[LDHB]] or [[LDHC]]]
A191: R_HMR_7709 | B191: [[[[HSD17B4*2]]]] | C191: [[[[HSD17B4]]]]
A192: R_HMR_4052 | B192: [[[[PRPS1*2]] or [[PRPS1L1*2]] or [[PRPS2*2]]]] | C192: [[[[PRPS1]] or [[PRPS1L1]] or [[PRPS2]]]]
A193: R_HMR_4304 | B193: [[[[G6PD*4]]]] | C193: [[[[G6PD]]]]
A194: R_HMR_4306 | B194: [[[[G6PD*4]]]] | C194: [[[[G6PD]]]]
A195: R_HMR_4350 | B195: [[[RBKS*1]]] | C195: [[[RBKS]]]
A196: R_HMR_4351 | B196: [[[RPIA*1]]] | C196: [[[RPIA]]]
A197: R_HMR_4352 | B197: [[[RPIA*1]]] | C197: [[[RPIA]]]
A198: R_HMR_4354 | B198: [[[[PGM2*2]]]] | C198: [[[[PGM2]]]]
A199: R_HMR_4398 | B199: [[[DERA*1]]] | C199: [[[DERA]]]
A200: R_HMR_4404 | B200: [[[TKT*1]] or [[TKTL1*1]] or [[TKTL2*1]]] | C200: [[[TKT]] or [[TKTL1]] or [[TKTL2]]]
... 7973 more rows
